bitfinex/quotes_SOLUSD_20241226
["timestamp","ask_amount","ask_price","bid_price","bid_amount"]
[1735229117956,7.61423825,189.42,189.3,15.36647253]
[1735229118872,6.63721459,189.43,189.33,15.49196253]
[1735229119048,6.63721459,189.43,189.34,23.776884]
[1735229120156,23.902374,189.52,189.34,23.776884]
[1735229120359,20.0,189.48,189.34,23.776884]
[1735229120860,20.0,189.48,189.35,0.12549]
[1735229121269,1.3194,189.47,189.32,15.36647253]
[1735229121566,20.0,189.44,189.33,15.49196253]
[1735229121772,20.0,189.44,189.34,23.776884]
[1735229122179,20.0,189.44,189.35,0.12549]
[1735229123254,7.47726021,189.47,189.37,23.776884]
[1735229123579,6.15786021,189.52,189.39,23.902374]
[1735229124280,6.15786021,189.52,189.38,0.12549]
[1735229124481,20.0,189.49,189.38,0.12549]
[1735229124648,20.0,189.49,189.38,23.902374]
[1735229124974,20.0,189.49,189.38,39.26884653]
[1735229125164,20.0,189.49,189.4,0.12549]
[1735229125366,20.0,189.49,189.41,23.776884]
[1735229125666,20.0,189.49,189.4,23.902374]
[1735229125863,20.0,189.49,189.39,23.902374]
[1735229128696,1.3194,189.48,189.39,23.902374]
[1735229128872,20.0,189.49,189.39,23.902374]
[1735229129394,6.15786021,189.52,189.41,0.12549]
[1735229129598,6.15786021,189.52,189.43,0.12549]
[1735229129767,5.83983993,189.6,189.44,23.776884]
[1735229129965,23.902374,189.59,189.43,0.12549]
[1735229130188,5.83983993,189.58,189.42,23.902374]
[1735229130694,6.15786021,189.57,189.43,23.776884]
[1735229131172,20.0,189.54,189.43,23.776884]
[1735229131758,20.0,189.54,189.42,23.776884]
[1735229132089,20.0,189.5,189.37,23.16317253]
[1735229132263,20.0,189.5,189.38,23.902374]
[1735229132461,20.0,189.5,189.41,0.12549]
[1735229132662,20.0,189.5,189.42,23.776884]
[1735229133189,20.0,189.5,189.41,0.12549]
[1735229133966,20.0,189.5,189.4,15.36647253]
[1735229134166,20.0,189.5,189.39,15.36647253]
[1735229134392,20.0,189.5,189.4,23.776884]
[1735229135274,20.0,189.5,189.38,23.776884]
[1735229135478,20.12549,189.52,189.38,23.776884]
[1735229135677,20.0,189.47,189.34,15.36647253]
[1735229135995,20.0,189.43,189.32,23.08777253]
[1735229136368,20.0,189.43,189.32,7.7213]
[1735229136678,20.0,189.42,189.28,15.36647253]
[1735229136988,26.15786021,189.42,189.28,15.36647253]
[1735229137367,20.0,189.42,189.27,7.7213]
[1735229137571,20.0,189.38,189.28,23.776884]
[1735229140791,20.0,189.35,189.23,23.08777253]
[1735229140996,25.29111056,189.35,189.23,7.7213]
[1735229141299,20.0,189.31,189.19,15.36647253]
[1735229142485,20.0,189.31,189.2,23.776884]
[1735229142684,20.0,189.31,189.19,15.36647253]
[1735229143888,20.0,189.31,189.2,15.36647253]
[1735229144198,0.12549,189.31,189.16,15.36647253]
[1735229144403,20.0,189.27,189.14,15.36647253]
[1735229144574,20.0,189.27,189.16,23.776884]
[1735229144770,20.0,189.27,189.16,15.36647253]
[1735229145005,20.0,189.27,189.13,7.7213]
[1735229145006,20.0,189.27,189.18,15.36647253]
[1735229146299,20.0,189.27,189.13,7.7213]
[1735229146469,6.13606596,189.27,189.13,7.7213]
[1735229146674,20.0,189.24,189.13,7.7213]
[1735229146875,20.0,189.24,189.1,15.36647253]
[1735229147105,23.902374,189.26,189.09,15.36647253]
[1735229147413,20.0,189.21,189.09,15.36647253]
[1735229147612,20.0,189.21,189.08,23.08777253]
[1735229148697,20.0,189.21,189.09,39.26884653]
[1735229148904,20.0,189.21,189.09,15.36647253]
[1735229149979,20.0,189.21,189.1,39.26884653]
[1735229150186,20.0,189.21,189.12,15.36647253]
[1735229150484,20.0,189.21,189.08,23.08777253]
[1735229151104,20.0,189.21,189.08,7.7213]
[1735229151274,20.0,189.19,189.04,15.36647253]
[1735229151478,6.26155596,189.2,189.03,7.7213]
[1735229151479,20.0,189.17,189.03,23.08777253]
[1735229151698,0.12549,189.2,189.03,23.08777253]
[1735229151699,20.0,189.15,189.03,7.7213]
[1735229152211,20.0,189.14,189.03,23.08777253]
[1735229152777,20.0,189.14,189.03,15.36647253]
[1735229154697,20.0,189.14,189.03,23.776884]
[1735229155379,20.0,189.14,189.03,15.36647253]
[1735229156810,20.0,189.14,189.04,15.36647253]
[1735229158730,20.0,189.14,189.03,15.49196253]
[1735229158895,20.0,189.14,189.03,0.12549]
[1735229160212,20.0,189.14,189.05,23.776884]
[1735229160515,20.0,189.14,189.05,15.36647253]
[1735229160884,20.0,189.14,189.06,0.12549]
[1735229161203,61.79144825,189.27,189.11,15.36647253]
[1735229161393,3.2265181,189.26,189.14,15.36647253]
[1735229161712,23.902374,189.25,189.04,7.761]
[1735229161919,23.902374,189.22,189.04,7.761]
[1735229162223,23.902374,189.22,189.02,15.36647253]
[1735229162224,23.902374,189.2,189.02,15.36647253]
[1735229162392,20.0,189.17,189.01,15.36647253]
[1735229162715,23.2265181,189.16,189.01,15.36647253]
[1735229162914,23.2265181,189.16,189.0,39.26884653]
[1735229163139,0.12549,189.15,188.99,23.12747253]
[1735229163412,0.12549,189.15,189.0,39.26884653]
[1735229163589,3.2265181,189.14,189.01,15.36647253]
[1735229163786,3.2265181,189.14,189.03,15.36647253]
[1735229164316,3.2265181,189.14,189.03,23.776884]
[1735229165517,3.2265181,189.14,189.02,23.902374]
[1735229166514,3.2265181,189.14,189.0,24.67123364]
[1735229167023,3.2265181,189.14,189.01,23.776884]
[1735229167926,20.0,189.1,188.94,32.95123364]
[1735229168226,23.902374,189.09,188.94,8.28]
[1735229168520,20.0,189.06,188.92,24.67123364]
[1735229168717,20.12549,189.05,188.9,8.28]
[1735229168899,26.28335021,189.05,188.9,8.28]
[1735229169101,20.0,189.03,188.91,23.776884]
[1735229169518,26.15786021,189.03,188.9,23.902374]
[1735229169695,26.15786021,189.03,188.86,9.07375601]
[1735229169696,26.15786021,189.03,188.88,24.67123364]
[1735229169902,20.0,188.99,188.86,8.28]
[1735229170121,20.0,188.99,188.87,23.902374]
[1735229170321,20.0,188.99,188.87,48.57360764]
[1735229170525,20.0,188.99,188.87,24.67123364]
[1735229170907,20.0,188.99,188.87,23.902374]
[1735229171101,20.0,188.99,188.82,6.5492]
[1735229171313,6.15786021,188.98,188.85,23.902374]
[1735229171514,20.0,188.95,188.85,48.57360764]
[1735229171713,20.0,188.95,188.87,48.57360764]
[1735229172514,5.39224339,189.03,188.89,48.57360764]
[1735229172722,1.25023316,189.04,188.89,48.57360764]
[1735229172923,1.25023316,189.04,188.91,23.902374]
[1735229173132,1.25023316,189.04,188.94,23.776884]
[1735229173329,4.90762705,189.08,188.94,48.44811764]
[1735229173718,4.90762705,189.08,188.97,0.12549]
[1735229173925,4.90762705,189.08,188.98,23.776884]
[1735229174427,4.90762705,189.08,188.94,24.67123364]
[1735229174624,4.90762705,189.08,188.98,24.67123364]
[1735229174824,5.83983993,189.14,189.0,23.776884]
[1735229175005,4.90762705,189.13,189.0,23.776884]
[1735229175533,53.902374,189.12,188.93,24.67123364]
[1735229175836,4.90762705,189.11,188.94,24.67123364]
[1735229176031,4.90762705,189.11,188.97,23.776884]
[1735229176334,0.12549,189.08,188.95,24.67123364]
[1735229176522,0.12549,189.08,188.92,2.30512405]
[1735229176523,20.0,189.07,188.93,24.67123364]
[1735229176723,20.0,189.05,188.93,24.67123364]
[1735229178445,20.0,189.05,188.9,24.67123364]
[1735229178735,20.0,189.05,188.89,6.5492]
[1735229178736,4.90762705,189.04,188.89,31.22043364]
[1735229179036,20.0,189.0,188.86,24.67123364]
[1735229179335,20.0,189.0,188.87,23.776884]
[1735229179545,20.0,189.0,188.84,31.22043364]
[1735229179752,20.0,188.96,188.84,31.22043364]
[1735229180235,4.90762705,189.0,188.85,48.57360764]
[1735229180735,4.90762705,189.0,188.85,24.67123364]
[1735229180935,4.90762705,189.0,188.84,31.22043364]
[1735229181133,4.90762705,189.0,188.85,48.57360764]
[1735229181440,4.90762705,189.0,188.87,24.67123364]
[1735229181825,4.90762705,189.0,188.87,23.776884]
[1735229183315,4.90762705,189.0,188.88,48.44811764]
[1735229183519,4.90762705,189.0,188.89,24.67123364]
[1735229184012,4.90762705,189.0,188.9,23.902374]
[1735229184249,20.0,189.02,188.9,48.57360764]
[1735229184845,20.0,189.02,188.88,24.67123364]
[1735229185041,20.12549,189.01,188.84,31.22043364]
[1735229185239,20.12549,189.01,188.84,6.5492]
[1735229185240,20.0,188.97,188.84,6.5492]
[1735229185537,20.0,188.97,188.86,0.12549]
[1735229185739,20.0,188.98,188.85,24.67123364]
[1735229186035,20.0,188.98,188.84,31.22043364]
[1735229186446,20.0,188.98,188.84,24.67123364]
[1735229186738,20.0,188.98,188.85,48.44811764]
[1735229186942,20.0,188.98,188.85,23.776884]
[1735229187149,0.12549,188.97,188.82,26.18273364]
[1735229187450,20.0,188.94,188.82,24.67123364]
[1735229187633,20.0,188.94,188.83,23.776884]
[1735229189853,4.90762705,188.97,188.83,23.776884]
[1735229190060,4.90762705,188.97,188.84,0.12549]
[1735229190855,4.90762705,188.97,188.87,23.776884]
[1735229191041,30.0,189.09,188.9,23.776884]
[1735229191349,6.15786021,189.03,188.93,23.776884]
[1735229191524,6.15786021,189.03,188.86,1.6227]
[1735229191525,0.12549,189.02,188.86,26.29393364]
[1735229191724,1.42285149,189.01,188.86,1.6227]
[1735229191921,6.15786021,189.01,188.86,26.29393364]
[1735229192458,20.0,188.98,188.87,23.776884]
[1735229192762,20.0,188.98,188.85,23.902374]
[1735229193140,20.0,188.98,188.86,23.776884]
[1735229194055,0.12549,188.97,188.81,2.41673973]
[1735229194346,0.12549,188.95,188.81,1.6227]
[1735229194554,20.0,188.93,188.81,1.6227]
[1735229194855,20.0,188.92,188.81,23.776884]
[1735229195832,20.0,188.92,188.8,30.84613364]
[1735229196356,20.0,188.92,188.81,23.776884]
[1735229196943,20.0,188.92,188.78,24.67123364]
[1735229197145,20.0,188.92,188.79,3.81759663]
[1735229197455,20.0,188.89,188.79,3.81759663]
[1735229197752,20.0,188.89,188.82,23.776884]
[1735229197962,20.0,188.94,188.82,23.776884]
[1735229198260,20.0,188.94,188.81,23.776884]
[1735229198964,20.0,188.94,188.8,23.902374]
[1735229199166,0.12549,188.93,188.78,24.67123364]
[1735229199540,26.15786021,188.94,188.79,23.902374]
[1735229199747,26.15786021,188.94,188.79,23.776884]
[1735229200074,20.0,188.9,188.79,3.8169739]
[1735229200561,20.0,188.9,188.77,23.902374]
[1735229201252,26.15786021,188.9,188.78,3.81721473]
[1735229201773,26.15786021,188.9,188.75,30.84613364]
[1735229201938,20.0,188.86,188.74,24.67123364]
[1735229202358,20.0,188.86,188.72,26.29393364]
[1735229202561,4.73500872,188.87,188.71,25.4656515]
[1735229202739,20.0,188.83,188.71,25.4656515]
[1735229203057,20.0,188.83,188.72,3.81855983]
[1735229203241,24.73500872,188.83,188.72,3.81855983]
[1735229203439,0.12549,188.83,188.72,3.81855983]
[1735229203645,20.0,188.79,188.67,26.29393364]
[1735229203933,20.0,188.79,188.68,24.67123364]
[1735229204138,20.0,188.79,188.69,23.776884]
[1735229204568,20.0,188.79,188.65,6.1749]
[1735229204863,24.73500872,188.79,188.66,24.67123364]
[1735229205160,24.73500872,188.79,188.66,28.48941849]
[1735229205751,24.73500872,188.79,188.67,23.776884]
[1735229205960,24.73500872,188.79,188.64,24.67123364]
[1735229206548,20.0,188.75,188.6,24.67123364]
[1735229206747,20.0,188.75,188.59,24.67123364]
[1735229207159,26.13606596,188.75,188.59,24.67123364]
[1735229207363,26.13606596,188.75,188.6,24.67123364]
[1735229207956,20.0,188.75,188.65,0.12549]
[1735229208275,20.0,188.75,188.64,48.44811764]
[1735229208276,20.0,188.79,188.67,23.902374]
[1735229208453,20.0,188.79,188.65,24.67123364]
[1735229209367,20.0,188.79,188.66,23.776884]
[1735229209547,0.12549,188.78,188.63,24.67123364]
[1735229209742,20.0,188.76,188.62,24.67123364]
[1735229210445,20.0,188.76,188.63,23.902374]
[1735229211461,20.0,188.76,188.61,24.67123364]
[1735229211761,20.0,188.76,188.6,24.67123364]
[1735229211966,26.15786021,188.76,188.59,24.67123364]
[1735229212267,20.0,188.74,188.6,23.902374]
[1735229212769,20.0,188.72,188.6,23.902374]
[1735229212948,20.0,188.72,188.59,24.67123364]
[1735229213260,20.0,188.72,188.57,24.67123364]
[1735229213839,20.0,188.72,188.56,6.1749]
[1735229214046,20.0,188.72,188.59,24.67123364]
[1735229214347,20.0,188.72,188.61,24.67123364]
[1735229214568,20.0,188.72,188.61,23.902374]
[1735229214747,20.0,188.72,188.58,24.67123364]
[1735229214949,26.15786021,188.72,188.56,30.84613364]
[1735229215150,25.83983993,188.72,188.57,23.902374]
[1735229215343,20.0,188.68,188.57,23.902374]
[1735229215967,20.0,188.68,188.56,0.12549]
[1735229216144,20.0,188.68,188.54,26.29773364]
[1735229216345,20.0,188.68,188.53,24.67123364]
[1735229216543,20.0,188.64,188.52,24.67123364]
[1735229216969,20.0,188.64,188.53,24.67123364]
[1735229217176,20.0,188.66,188.55,24.67123364]
[1735229217378,20.0,188.66,188.54,24.67123364]
[1735229217675,20.0,188.66,188.56,23.776884]
[1735229217967,20.0,188.66,188.57,0.12549]
[1735229218269,20.0,188.66,188.56,23.776884]
[1735229218646,20.0,188.66,188.57,0.12549]
[1735229218855,20.0,188.66,188.57,23.902374]
[1735229219070,6.15786021,188.69,188.57,23.902374]
[1735229219864,6.15786021,188.69,188.59,0.12549]
[1735229220071,2.42267233,188.72,188.6,23.776884]
[1735229220254,9.57502781,188.74,188.61,23.776884]
[1735229220456,6.15786021,188.74,188.63,23.776884]
[1735229220763,2.42267233,188.76,188.65,23.776884]
[1735229220967,3.4171676,188.78,188.65,23.776884]
[1735229221176,3.4171676,188.78,188.64,23.902374]
[1735229221358,9.57502781,188.78,188.64,23.902374]
[1735229221546,9.57502781,188.78,188.65,23.776884]
[1735229222069,9.57502781,188.78,188.64,24.79672364]
[1735229222070,9.57502781,188.78,188.67,24.67123364]
[1735229222367,6.15786021,188.78,188.68,23.902374]
[1735229222569,0.12549,188.83,188.68,23.902374]
[1735229222770,6.28335021,188.83,188.69,23.776884]
[1735229224170,20.0,188.8,188.69,23.776884]
[1735229224367,6.15786021,188.83,188.7,0.12549]
[1735229224751,6.15786021,188.83,188.69,23.776884]
[1735229225166,23.902374,188.82,188.65,6.0148]
[1735229225373,28.81000105,188.82,188.65,30.68603364]
[1735229225578,20.0,188.79,188.66,24.67123364]
[1735229226072,20.0,188.79,188.65,30.68603364]
[1735229226277,26.15786021,188.79,188.63,23.776884]
[1735229226574,20.0,188.74,188.59,26.29773364]
[1735229226790,20.0,188.74,188.58,24.67123364]
[1735229226986,20.0,188.74,188.61,23.902374]
[1735229227168,20.0,188.74,188.6,24.67123364]
[1735229227483,20.0,188.75,188.65,48.57360764]
[1735229227772,20.0,188.75,188.65,23.776884]
[1735229228179,20.0,188.75,188.62,24.67123364]
[1735229228366,20.0,188.75,188.64,0.12549]
[1735229228563,20.0,188.75,188.64,23.902374]
[1735229229155,20.0,188.75,188.66,23.902374]
[1735229229556,20.0,188.75,188.67,23.776884]
[1735229229861,20.0,188.79,188.67,23.776884]
[1735229230275,20.12549,188.78,188.62,24.67123364]
[1735229230466,20.0,188.75,188.6,24.67123364]
[1735229230778,20.0,188.75,188.62,24.67123364]
[1735229231080,20.0,188.75,188.63,23.776884]
[1735229231574,20.0,188.73,188.58,24.67123364]
[1735229231776,20.0,188.73,188.56,24.67123364]
[1735229231777,20.0,188.71,188.56,24.67123364]
[1735229231980,20.0,188.69,188.56,24.67123364]
[1735229232358,20.0,188.69,188.62,23.776884]
[1735229232674,20.0,188.81,188.62,48.44811764]
[1735229232869,0.12549,188.79,188.63,24.79672364]
[1735229233074,1.19801695,188.79,188.65,24.67123364]
[1735229233679,1.19801695,188.79,188.65,23.776884]
[1735229234459,2.2705439,188.79,188.65,23.776884]
[1735229234656,23.776884,188.78,188.65,24.67123364]
[1735229234866,20.0,188.77,188.65,24.67123364]
[1735229236080,20.0,188.77,188.64,24.67123364]
[1735229236378,20.0,188.77,188.65,24.67123364]
[1735229237176,20.0,188.77,188.62,0.79488961]
[1735229237370,20.0,188.69,188.55,9.78750093]
[1735229237583,20.0,188.69,188.53,24.67123364]
[1735229237767,20.0,188.65,188.53,24.67123364]
[1735229238223,3.8351001,188.64,188.54,24.67123364]
[1735229239257,3.8351001,188.64,188.53,24.67123364]
[1735229239985,3.8351001,188.64,188.53,0.12549]
[1735229241974,3.8351001,188.64,188.55,0.12549]
[1735229242176,3.8351001,188.7,188.58,24.67123364]
[1735229242377,8.20746195,188.8,188.61,24.67123364]
[1735229242583,7.56160479,188.79,188.61,24.67123364]
[1735229242782,23.902374,188.78,188.6,23.902374]
[1735229242979,23.902374,188.73,188.51,0.79494452]
[1735229243168,0.12549,188.73,188.56,48.57360764]
[1735229243373,0.75862387,188.72,188.58,24.79672364]
[1735229243572,23.776884,188.67,188.57,3.82878514]
[1735229243774,23.902374,188.67,188.57,3.82878514]
[1735229243959,20.0,188.64,188.48,24.67123364]
[1735229244156,20.0,188.63,188.48,24.67123364]
[1735229244381,20.0,188.63,188.5,24.67123364]
[1735229244576,23.776884,188.63,188.49,29.29909427]
[1735229244782,20.0,188.6,188.49,4.62786063]
[1735229244978,20.0,188.6,188.49,3.83237101]
[1735229245186,20.0,188.6,188.48,24.67123364]
[1735229245376,20.0,188.6,188.5,3.83253949]
[1735229246087,20.0,188.6,188.51,3.83253949]
[1735229246664,20.0,188.6,188.49,3.83253949]
[1735229247187,20.0,188.6,188.49,28.50377313]
[1735229247482,20.0,188.6,188.53,0.12549]
[1735229247675,20.0,188.6,188.53,24.79672364]
[1735229247980,6.80298092,188.63,188.53,48.57360764]
[1735229248165,6.80298092,188.63,188.54,3.83253949]
[1735229248584,6.80298092,188.63,188.55,3.83253949]
[1735229248973,20.0,188.6,188.55,3.83253949]
[1735229249185,20.0,188.6,188.54,0.12549]
[1735229249482,99.01492391,188.8,188.6,0.12549]
[1735229249675,7.14257146,188.77,188.63,24.79672364]
[1735229249880,8.20746195,188.78,188.64,24.67123364]
[1735229250079,8.20746195,188.8,188.65,23.902374]
[1735229250268,8.20746195,188.8,188.66,24.67123364]
[1735229251188,7.13983993,188.84,188.67,3.84065885]
[1735229251369,7.14257146,188.8,188.68,24.67123364]
[1735229251568,7.13983993,188.84,188.68,25.4659007]
[1735229251886,23.776884,188.82,188.69,3.84065885]
[1735229252090,20.0,188.79,188.69,3.84065885]
[1735229252576,20.0,188.79,188.66,7.9656]
[1735229252896,20.0,188.75,188.62,6.3478]
[1735229253069,20.0,188.75,188.63,0.12549]
[1735229253269,20.0,188.75,188.63,3.83839897]
[1735229253890,20.0,188.75,188.61,27.08406087]
[1735229254081,20.0,188.75,188.61,2.41282723]
[1735229254273,20.0,188.75,188.61,27.08406087]
[1735229254601,20.0,188.75,188.62,25.46624527]
[1735229254814,20.0,188.75,188.62,0.79501163]
[1735229255373,20.0,188.75,188.62,0.12549]
[1735229255573,20.0,188.75,188.62,49.36858709]
[1735229256076,20.0,188.75,188.63,3.83992177]
[1735229256503,23.776884,188.74,188.63,3.83992177]
[1735229256715,20.0,188.71,188.58,6.3478]
[1735229257186,20.0,188.71,188.59,24.67123364]
[1735229257496,20.0,188.71,188.6,0.92056298]
[1735229257670,20.0,188.71,188.6,0.12549]
[1735229258520,20.0,188.71,188.58,6.3478]
[1735229258679,8.20746195,188.79,188.68,24.67123364]
[1735229258883,8.20746195,188.78,188.7,24.67123364]
[1735229259093,8.20746195,188.78,188.72,24.67123364]
[1735229259298,8.20746195,188.78,188.69,0.79476074]
[1735229259299,8.20746195,188.78,188.74,24.67123364]
[1735229259472,8.20746195,188.78,188.75,0.12549]
[1735229259677,8.20746195,188.87,188.76,24.67123364]
[1735229259877,8.20746195,188.87,188.76,25.46557006]
[1735229260176,8.20746195,188.87,188.8,24.67123364]
[1735229260380,8.20746195,188.87,188.81,25.46539259]
[1735229260574,8.20746195,188.94,188.84,0.12549]
[1735229260800,8.20746195,188.94,188.86,24.67123364]
[1735229260996,8.20746195,188.94,188.85,24.67123364]
[1735229261310,8.20746195,188.94,188.8,6.1012]
[1735229261474,16.41492391,188.96,188.82,23.902374]
[1735229261679,7.13622882,188.99,188.82,24.79672364]
[1735229261912,23.902374,188.98,188.83,24.67123364]
[1735229262576,7.13622882,188.99,188.83,24.67123364]
[1735229262771,7.13622882,188.99,188.84,49.36764844]
[1735229263378,7.13622882,188.99,188.84,48.57360764]
[1735229263830,7.13622882,188.99,188.85,24.67123364]
[1735229264119,7.13622882,188.99,188.86,0.12549]
[1735229264280,20.0,188.96,188.86,0.12549]
[1735229264480,20.0,188.96,188.84,24.67123364]
[1735229265209,20.0,188.96,188.85,0.12549]
[1735229266311,20.0,188.96,188.82,24.67123364]
[1735229266494,20.0,188.96,188.83,0.79401684]
[1735229267921,20.0,188.92,188.83,0.79401684]
[1735229268228,20.0,188.92,188.8,6.89528337]
[1735229268796,20.0,188.92,188.79,1.5236]
[1735229269001,20.0,188.92,188.77,25.46553811]
[1735229269191,20.0,188.92,188.78,24.67123364]
[1735229269392,20.0,188.92,188.79,0.79421466]
[1735229269894,20.0,188.92,188.78,0.12549]
[1735229270099,20.0,188.92,188.8,0.12549]
[1735229270397,82.6,188.96,188.8,0.12549]
[1735229270398,20.0,188.96,188.82,0.12549]
[1735229271683,20.0,188.96,188.82,0.91964123]
[1735229271888,20.0,188.96,188.84,0.12549]
[1735229273194,5.17883889,189.04,188.86,24.79672364]
[1735229273407,7.13622882,189.03,188.86,0.12549]
[1735229274321,23.902374,189.02,188.86,0.12549]
[1735229274494,20.0,188.99,188.86,0.12549]
[1735229274700,12.71445204,189.02,188.9,0.12549]
[1735229275008,5.69516638,189.02,188.9,0.91923832]
[1735229275516,5.69516638,189.02,188.92,0.12549]
[1735229275767,5.69516638,189.02,188.92,0.79362642]
[1735229276002,5.69516638,189.02,188.9,24.67123364]
[1735229276191,5.69516638,189.02,188.91,24.69614327]
[1735229276500,5.69516638,189.02,188.91,0.91925927]
[1735229276701,20.0,188.99,188.88,24.67123364]
[1735229277005,20.0,188.99,188.89,0.79380828]
[1735229277509,20.0,189.03,188.9,24.79672364]
[1735229277800,29.47205038,189.06,188.94,0.12549]
[1735229277801,5.69516638,189.06,188.94,0.12549]
[1735229278106,5.69516638,189.06,188.94,0.91905885]
[1735229278920,5.69516638,189.06,188.94,25.59029249]
[1735229279319,5.69516638,189.06,188.95,1.6556]
[1735229279553,23.776884,189.1,188.96,0.91899269]
[1735229279909,12.8313952,189.11,189.0,0.12549]
[1735229280112,12.31506771,189.17,189.0,23.902374]
[1735229280327,23.776884,189.16,189.0,23.902374]
[1735229280630,7.13622882,189.17,189.0,23.902374]
[1735229280831,7.13622882,189.17,189.0,24.69567155]
[1735229281931,20.0,189.14,189.0,24.69567155]
[1735229282129,20.0,189.13,188.98,6.1962]
[1735229282933,20.0,189.13,189.02,0.12549]
[1735229283109,20.0,189.13,189.02,0.91869495]
[1735229283314,7.14228437,189.19,189.02,0.91869495]
[1735229283315,7.14228437,189.19,189.06,0.12549]
[1735229284224,7.14228437,189.19,189.06,0.9185338]
[1735229284423,20.0,189.16,189.08,0.12549]
[1735229284620,20.0,189.16,189.08,6.32169]
[1735229284826,7.14228437,189.19,189.08,6.32169]
[1735229285040,0.12549,189.17,189.08,6.1962]
[1735229285235,0.12549,189.17,189.05,1.6556]
[1735229285411,7.14228437,189.16,189.05,1.6556]
[1735229285755,5.74286909,189.18,189.06,0.12549]
[1735229286124,20.0,189.15,189.06,0.12549]
[1735229286435,20.0,189.18,189.06,0.91856767]
[1735229286640,20.0,189.17,189.06,0.91856767]
[1735229286832,7.14228437,189.21,189.06,0.91856767]
[1735229287051,7.14228437,189.21,189.08,0.12549]
[1735229287378,30.0,189.29,189.11,6.1962]
[1735229287379,7.14228437,189.25,189.11,6.1962]
[1735229287745,7.14228437,189.25,189.12,0.12549]
[1735229288080,7.13622882,189.29,189.14,23.902374]
[1735229288383,7.14228437,189.29,189.16,0.12549]
[1735229288540,7.14228437,189.29,189.13,26.32683364]
[1735229288741,23.902374,189.28,189.13,1.6556]
[1735229289237,1.8233542,189.27,189.14,48.57360764]
[1735229289442,7.13622882,189.29,189.14,49.36632184]
[1735229289654,23.776884,189.3,189.14,49.36632184]
[1735229289855,1.8233542,189.31,189.16,0.12549]
[1735229290453,1.8233542,189.31,189.15,0.12549]
[1735229290454,20.0,189.27,189.15,0.12549]
[1735229291166,20.0,189.27,189.13,1.6556]
[1735229291747,20.0,189.23,189.13,1.6556]
[1735229291944,20.0,189.19,189.13,1.6556]
[1735229292158,20.0,189.19,189.11,6.1962]
[1735229293344,20.0,189.24,189.11,6.1962]
[1735229293545,23.776884,189.23,189.11,6.1962]
[1735229293739,20.0,189.2,189.11,6.1962]
[1735229294768,20.0,189.24,189.11,30.86743364]
[1735229294964,20.0,189.24,189.12,49.36642072]
[1735229295168,1.8233542,189.31,189.16,0.12549]
[1735229295351,1.8233542,189.31,189.17,1.5119]
[1735229295844,23.776884,189.3,189.17,1.5119]
[1735229296251,1.8233542,189.31,189.18,6.3976]
[1735229296745,20.0,189.27,189.18,6.3976]
[1735229298767,20.0,189.23,189.18,6.3976]
[1735229299069,20.0,189.23,189.13,6.3976]
[1735229299264,20.0,189.21,189.13,6.3976]
[1735229300457,20.0,189.17,189.12,1.5119]
[1735229300773,20.0,189.17,189.08,6.3976]
[1735229301248,23.776884,189.17,189.08,6.3976]
[1735229301444,20.0,189.14,189.08,6.3976]
[1735229302170,20.0,189.16,189.08,6.3976]
[1735229302369,5.69001532,189.2,189.08,6.3976]
[1735229302542,7.06373208,189.28,189.11,24.79672364]
[1735229302747,7.06373208,189.28,189.13,31.06883364]
[1735229302948,7.06373208,189.28,189.13,6.3976]
[1735229303170,7.06373208,189.28,189.13,31.06883364]
[1735229303365,23.776884,189.27,189.13,6.3976]
[1735229303685,23.776884,189.27,189.13,31.06883364]
[1735229303876,23.776884,189.27,189.13,6.3976]
[1735229304056,7.06373208,189.28,189.13,6.3976]
[1735229304448,23.776884,189.27,189.13,6.3976]